fUST/lending_fUST_20241013
["ID","MTS","AMOUNT","RATE_DAILY","PERIOD"]
[340191251,1728807039571,-195.531126,0.00029501,7]
[340191252,1728807039581,-151.0,0.00029501,7]
[340191253,1728807039590,-151.0,0.00029501,7]
[340191254,1728807039600,-151.0,0.00029501,7]
[340191255,1728807039610,-151.0,0.00029501,7]
[340191256,1728807039619,-151.0,0.0002951,7]
[340191257,1728807039630,-171.310379,0.0002951,7]
[340191258,1728807039641,-151.0,0.0002951,7]
[340191259,1728807039654,-151.0,0.0002951,7]
[340191260,1728807039664,-171.310379,0.0002951,7]
[340191261,1728807039673,-151.0,0.0002951,7]
[340191262,1728807039683,-3000.0,0.0002951,90]
[340191263,1728807039692,-3000.0,0.0002951,90]
[340191264,1728807039702,-3000.0,0.0002951,90]
[340191265,1728807039713,-3000.0,0.0002951,90]
[340191266,1728807039723,-3000.0,0.0002951,90]
[340191267,1728807039733,-3000.0,0.0002951,90]
[340191268,1728807039743,-3000.0,0.0002951,90]
[340191269,1728807039752,-3000.0,0.0002951,90]
[340191270,1728807039762,-1176.399964,0.0002951,90]
[340191271,1728807039771,-66751.4231097,0.00029511,4]
[340191272,1728807039781,-22281.3849324,0.00029511,4]
[340191273,1728807039790,-151.0,0.00029521,2]
[340191274,1728807039800,-151.0,0.00029521,7]
[340191275,1728807039810,-151.0,0.00029521,3]
[340191276,1728807039819,-151.0,0.00029521,7]
[340191277,1728807039828,-166.997533,0.00029521,7]
[340191278,1728807039838,-166.997533,0.00029521,7]
[340191279,1728807039847,-151.0,0.00029521,7]
[340191280,1728807039856,-151.0,0.00029521,7]
[340191281,1728807039866,-297.921729,0.00029521,7]
[340191282,1728807039876,-151.0,0.00029521,7]
[340191283,1728807039885,-151.0,0.00029521,7]
[340191284,1728807039895,-151.0,0.00029521,7]
[340191285,1728807039905,-151.0,0.00029521,7]
[340191286,1728807039914,-151.0,0.00029521,7]
[340191287,1728807039923,-151.0,0.00029521,7]
[340191288,1728807039933,-151.0,0.00029521,7]
[340191289,1728807039944,-235.023237,0.00029521,7]
[340191290,1728807039953,-235.023237,0.00029521,7]
[340191291,1728807039966,-151.0,0.00029521,7]
[340191292,1728807039976,-214.488169,0.00029521,7]
[340191293,1728807039986,-207.18641,0.00029521,7]
[340191294,1728807039996,-214.488169,0.00029521,7]
[340191295,1728807040007,-207.18641,0.00029521,7]
[340191296,1728807040017,-169.065432,0.00029521,7]
[340191297,1728807040027,-169.065432,0.00029521,7]
[340191298,1728807040036,-242.447865,0.00029521,7]
[340191300,1728807040046,-242.447865,0.00029521,7]
[340191302,1728807040055,-350.865872,0.00029521,7]
[340191304,1728807040065,-350.865872,0.00029521,7]
[340191305,1728807040074,-1118.757554,0.00029521,7]
[340191306,1728807040084,-1118.757554,0.00029521,7]
[340191307,1728807040095,-832.968628,0.00029521,7]
[340191308,1728807040104,-832.968628,0.00029521,7]
[340191309,1728807040114,-195.531126,0.00029521,7]
[340191310,1728807040124,-195.531126,0.00029521,7]
[340191311,1728807040134,-151.0,0.00029521,7]
[340191312,1728807040143,-154.055299,0.0002953,7]
[340191313,1728807040153,-151.0,0.0002953,2]
[340191314,1728807040163,-151.0,0.0002954,7]
[340191315,1728807040173,-289.450273,0.0002954,7]
[340191316,1728807040183,-151.0,0.0002954,7]
[340191317,1728807040193,-151.0,0.0002954,7]
[340191318,1728807040203,-151.0,0.0002954,7]
[340191319,1728807040213,-151.0,0.0002954,2]
[340191320,1728807040223,-151.0,0.0002955,7]
[340191321,1728807040233,-151.0,0.0002955,7]
[340191322,1728807040242,-151.0,0.0002955,7]
[340191323,1728807040251,-151.0,0.0002955,7]
[340191324,1728807040261,-151.0,0.0002955,7]
[340191325,1728807040270,-151.0,0.0002957,7]
[340191326,1728807040280,-171.310379,0.0002957,7]
[340191327,1728807040289,-151.0,0.0002957,7]
[340191328,1728807040299,-153.797713,0.0002957,7]
[340191329,1728807040308,-171.310379,0.0002957,7]
[340191330,1728807040317,-173.201169,0.0002957,7]
[340191331,1728807040327,-66751.4231097,0.0002957,4]
[340191332,1728807040336,-22281.3849324,0.0002957,4]
[340191333,1728807040346,-502.232171,0.00029573,5]
[340191334,1728807040355,-500.0,0.00029573,5]
[340191335,1728807040365,-501.51851618,0.00029573,5]
[340191336,1728807040374,-501.33930147,0.00029573,5]
[340191337,1728807040384,-500.0,0.00029573,2]
[340191338,1728807040394,-151.0,0.0002958,7]
[340191339,1728807040405,-151.0,0.0002958,3]
[340191340,1728807040414,-151.0,0.0002958,7]
[340191341,1728807040424,-166.997533,0.0002958,7]
[340191342,1728807040433,-166.997533,0.0002958,7]
[340191343,1728807040442,-151.0,0.0002958,7]
[340191344,1728807040452,-151.0,0.0002958,7]
[340191345,1728807040462,-151.0,0.0002958,7]
[340191346,1728807040474,-226.790815,0.0002958,7]
[340191347,1728807040483,-151.0,0.0002958,7]
[340191348,1728807040493,-151.0,0.0002958,7]
[340191349,1728807040502,-172.031048,0.0002958,7]
[340191350,1728807040512,-151.0,0.0002958,7]
[340191351,1728807040521,-235.023237,0.0002958,7]
[340191352,1728807040531,-235.023237,0.0002958,7]
[340191353,1728807040541,-151.0,0.0002958,7]
[340191354,1728807040551,-214.488169,0.0002958,7]
[340191355,1728807040561,-207.18641,0.0002958,7]
[340191356,1728807040572,-214.488169,0.0002958,7]
[340191357,1728807040582,-207.18641,0.0002958,7]
[340191358,1728807040591,-169.065432,0.0002958,7]
[340191359,1728807040601,-169.065432,0.0002958,7]
[340191360,1728807040610,-242.447865,0.0002958,7]
[340191361,1728807040619,-242.447865,0.0002958,7]
[340191362,1728807040629,-242.447865,0.0002958,7]
[340191363,1728807040638,-242.447865,0.0002958,7]
[340191364,1728807040651,-350.865872,0.0002958,7]
[340191365,1728807040660,-350.865872,0.0002958,7]
[340191366,1728807040669,-350.865872,0.0002958,7]
[340191367,1728807040678,-350.865872,0.0002958,7]
[340191368,1728807040688,-1118.757554,0.0002958,7]
[340191369,1728807040697,-1118.757554,0.0002958,7]
[340191370,1728807040706,-1118.757554,0.0002958,7]
[340191371,1728807040717,-1118.757554,0.0002958,7]
[340191372,1728807040726,-832.968628,0.0002958,7]
[340191373,1728807040735,-832.968628,0.0002958,7]
[340191374,1728807040745,-832.968628,0.0002958,7]
[340191375,1728807040754,-832.968628,0.0002958,7]
[340191376,1728807040764,-195.531126,0.0002958,7]
[340191377,1728807040773,-195.531126,0.0002958,7]
[340191378,1728807040783,-195.531126,0.0002958,7]
[340191379,1728807040794,-195.531126,0.0002958,7]
[340191380,1728807040804,-151.0,0.0002958,7]
[340191381,1728807040813,-151.0,0.0002958,7]
[340191382,1728807040822,-1367.99,0.000296,30]
[340191383,1728807040831,-3199.99,0.000296,14]
[340191384,1728807040841,-151.0,0.0002963,7]
[340191385,1728807040852,-151.0,0.00029661,7]
[340191386,1728807040861,-150.01,0.00029679,2]
[340191387,1728807040871,-3232.16350606,0.00029679,2]
[340191388,1728807040881,-166.666666,0.00029695,2]
[340191389,1728807040891,-151.0,0.00029795,7]
[340191390,1728807040900,-151.0,0.00029795,2]
[340191391,1728807040911,-151.0,0.00029795,2]
[340191392,1728807040920,-151.0,0.0002987,7]
[340191393,1728807040930,-171.310379,0.0002987,7]
[340191394,1728807040939,-151.0,0.0002987,7]
[340191395,1728807040949,-171.310379,0.0002987,7]
[340191396,1728807041031,-22281.3849324,0.0002987,4]
[340191397,1728807041041,-521.2546016,0.00029873,5]
[340191398,1728807041050,-500.0,0.00029873,5]
[340191399,1728807041060,-500.0,0.00029873,5]
[340191400,1728807041070,-151.0,0.0002988,7]
[340191401,1728807041079,-151.0,0.0002988,3]
[340191402,1728807041088,-151.0,0.0002988,7]
[340191403,1728807041098,-166.997533,0.0002988,7]
[340191404,1728807041107,-166.997533,0.0002988,7]
[340191405,1728807041116,-151.0,0.0002988,7]
[340191406,1728807041126,-151.0,0.0002988,7]
[340191407,1728807041136,-151.0,0.0002988,7]
[340191408,1728807041145,-151.0,0.0002988,7]
[340191409,1728807041154,-151.0,0.0002988,7]
[340191410,1728807041164,-235.023237,0.0002988,7]
[340191411,1728807041174,-235.023237,0.0002988,7]
[340191412,1728807041183,-151.0,0.0002988,7]
[340191413,1728807041193,-214.488169,0.0002988,7]
[340191414,1728807041202,-207.18641,0.0002988,7]
[340191415,1728807041214,-214.488169,0.0002988,7]
[340191416,1728807041229,-207.18641,0.0002988,7]
[340191417,1728807041238,-169.065432,0.0002988,7]
[340191418,1728807041248,-169.065432,0.0002988,7]
[340191419,1728807041257,-242.447865,0.0002988,7]
[340191420,1728807041266,-242.447865,0.0002988,7]
[340191421,1728807041275,-242.447865,0.0002988,7]
[340191422,1728807041285,-242.447865,0.0002988,7]
[340191423,1728807041294,-350.865872,0.0002988,7]
[340191424,1728807041303,-350.865872,0.0002988,7]
[340191425,1728807041312,-350.865872,0.0002988,7]
[340191426,1728807041322,-350.865872,0.0002988,7]
[340191427,1728807041331,-1118.757554,0.0002988,7]
[340191428,1728807041340,-1118.757554,0.0002988,7]
[340191429,1728807041350,-1118.757554,0.0002988,7]
[340191430,1728807041359,-1118.757554,0.0002988,7]
[340191431,1728807041368,-832.968628,0.0002988,7]
[340191432,1728807041377,-832.968628,0.0002988,7]
[340191433,1728807041386,-832.968628,0.0002988,7]
[340191434,1728807041395,-832.968628,0.0002988,7]
[340191435,1728807041405,-195.531126,0.0002988,7]
[340191436,1728807041414,-195.531126,0.0002988,7]
[340191437,1728807041423,-195.531126,0.0002988,7]
[340191438,1728807041432,-195.531126,0.0002988,7]
[340191439,1728807041442,-151.0,0.0002988,7]
[340191440,1728807041451,-151.0,0.0002988,7]
[340191441,1728807041462,-156.710519,0.0002989,7]
[340191442,1728807041471,-3010.27,0.000299,10]
[340191443,1728807041480,-151.0,0.000299,7]
[340191444,1728807041489,-2037.96925,0.000299,7]
[340191445,1728807041498,-2037.96925,0.000299,7]
[340191446,1728807041507,-151.0,0.000299,7]
[340191447,1728807041517,-151.0,0.000299,7]
[340191448,1728807041526,-390.162464,0.000299,7]
[340191449,1728807041535,-151.0,0.000299,7]
[340191450,1728807041545,-151.0,0.000299,7]
[340191451,1728807041555,-875.72904696,0.0003,15]
[340191452,1728807041564,-1500.0,0.0003,2]
[340191453,1728807041573,-1015.49106109,0.0003,7]
[340191454,1728807041583,-166.49162359,0.0003,2]
[340191455,1728807041593,-215.98134358,0.0003,2]
[340191456,1728807041602,-151.0,0.0003,7]
[340191457,1728807041611,-151.0,0.0003,7]
[340191458,1728807041620,-151.0,0.0003,7]
[340191459,1728807041630,-299.72682,0.0003,7]
[340191460,1728807041640,-299.72682,0.0003,7]
[340191461,1728807041652,-549.387377,0.0003,7]
[340191462,1728807041660,-549.387377,0.0003,7]
[340191463,1728807041670,-274.431227,0.0003,7]
[340191464,1728807041679,-274.431227,0.0003,7]
[340191465,1728807041689,-261.0,0.0003,2]
[340191466,1728807041698,-420.0,0.00030004,2]
[340191467,1728807041708,-1000.0,0.00030136,120]
[340191468,1728807041719,-150.112233,0.000302,10]
[340191469,1728807041729,-151.0,0.00030312,7]
[340191470,1728807041739,-151.0,0.00030312,7]
[340191471,1728807041749,-151.0,0.00030312,7]
[340191472,1728807041758,-151.0,0.00030312,7]
[340191473,1728807041767,-151.0,0.00030312,7]
[340191474,1728807041777,-151.0,0.00030312,7]
[340191475,1728807041786,-151.0,0.00030312,7]
[340191476,1728807041796,-151.0,0.00030312,7]
[340191477,1728807041805,-235.023237,0.00030312,7]
[340191478,1728807041814,-235.023237,0.00030312,7]
[340191479,1728807041824,-229.039186,0.00030312,7]
[340191480,1728807041834,-214.488169,0.00030312,7]
[340191481,1728807041843,-207.18641,0.00030312,7]
[340191482,1728807041853,-214.488169,0.00030312,7]
[340191483,1728807041863,-207.18641,0.00030312,7]
[340191484,1728807041872,-169.065432,0.00030312,7]
[340191485,1728807041882,-169.065432,0.00030312,7]
[340191486,1728807041891,-242.447865,0.00030312,7]
[340191487,1728807041902,-242.447865,0.00030312,7]
[340191488,1728807041911,-350.865872,0.00030312,7]
[340191489,1728807041920,-350.865872,0.00030312,7]
[340191490,1728807041929,-1118.757554,0.00030312,7]
[340191491,1728807041940,-1118.757554,0.00030312,7]
[340191492,1728807041949,-832.968628,0.00030312,7]
[340191493,1728807041960,-832.968628,0.00030312,7]
[340191494,1728807041969,-195.531126,0.00030312,7]
[340191495,1728807041979,-195.531126,0.00030312,7]
[340191496,1728807041988,-151.0,0.00030312,7]
[340191497,1728807041997,-160.0,0.00030321,10]
[340191498,1728807042007,-256.592136,0.00030322,7]
[340191499,1728807042017,-160.967258,0.00030322,7]
[340191500,1728807042027,-151.0,0.00030322,2]
[340191501,1728807042037,-151.0,0.00030322,7]
[340191502,1728807042046,-151.0,0.00030322,3]
[340191503,1728807042056,-166.997533,0.00030322,7]
[340191504,1728807042066,-166.997533,0.00030322,7]
[340191505,1728807042076,-151.0,0.00030322,7]
[340191506,1728807042085,-242.447865,0.00030322,7]
[340191507,1728807042094,-242.447865,0.00030322,7]
[340191508,1728807042104,-1118.757554,0.00030322,7]
[340191509,1728807042114,-1118.757554,0.00030322,7]
[340191510,1728807042123,-500.0,0.00030373,5]
[340191511,1728807042133,-3565.25611008,0.0003038,2]
[340191512,1728807042143,-3000.0,0.000304,4]
[340191513,1728807042154,-3000.0,0.0003041,4]
[340191514,1728807042163,-1000.0,0.0003041,120]
[340191515,1728807042173,-11140.6924662,0.0003041,4]
[340191516,1728807042182,-151.0,0.0003041,7]
[340191517,1728807042192,-171.310379,0.0003041,7]
[340191518,1728807042202,-151.0,0.0003041,7]
[340191519,1728807042213,-171.310379,0.0003041,7]
[340191520,1728807042223,-3000.0,0.0003042,4]
[340191521,1728807042232,-3000.0,0.0003043,4]
[340191522,1728807042241,-3000.0,0.0003044,4]
[340191523,1728807042251,-3000.0,0.0003045,4]
[340191524,1728807042260,-3000.0,0.0003046,4]
[340191525,1728807042269,-3000.0,0.0003047,4]
[340191526,1728807042279,-3000.0,0.0003048,4]
[340191527,1728807042288,-3000.0,0.0003049,4]
[340191528,1728807042298,-169.065432,0.0003049,7]
[340191529,1728807042308,-169.065432,0.0003049,7]
[340191530,1728807042317,-3000.0,0.000305,4]
[340191531,1728807042327,-3000.0,0.0003051,4]
[340191532,1728807042337,-350.865872,0.0003051,7]
[340191533,1728807042346,-350.865872,0.0003051,7]
[340191534,1728807042356,-832.968628,0.0003051,7]
[340191535,1728807042365,-832.968628,0.0003051,7]
[340191536,1728807042375,-195.531126,0.0003051,7]
[340191537,1728807042384,-195.531126,0.0003051,7]
[340191538,1728807042394,-151.0,0.0003051,7]
[340191539,1728807042403,-3000.0,0.0003052,4]
[340191540,1728807042413,-151.0,0.0003052,7]
[340191541,1728807042422,-151.0,0.0003052,7]
[340191542,1728807042432,-151.0,0.0003052,7]
[340191543,1728807042441,-151.0,0.0003052,7]
[340191544,1728807042451,-172.348514,0.0003052,7]
[340191545,1728807042460,-235.023237,0.0003052,7]
[340191546,1728807042469,-235.023237,0.0003052,7]
[340191547,1728807042480,-214.488169,0.0003052,7]
[340191548,1728807042490,-207.18641,0.0003052,7]
[340191549,1728807042500,-214.488169,0.0003052,7]
[340191550,1728807042510,-207.18641,0.0003052,7]
[340191551,1728807042519,-242.447865,0.0003052,7]
[340191552,1728807042529,-242.447872,0.0003052,7]
[340191553,1728807042539,-1118.757554,0.0003052,7]
[340191556,1728807042614,-1118.757564,0.0003052,7]
[340191557,1728807042624,-3000.0,0.0003053,4]
[340191558,1728807042634,-3000.0,0.0003054,4]
[340191559,1728807042646,-5114.612762,0.0003055,4]
[340191560,1728807042656,-151.0,0.0003055,7]
[340191561,1728807042665,-171.310379,0.0003055,7]
[340191562,1728807042675,-151.0,0.0003055,7]
[340191563,1728807042686,-171.310379,0.0003055,7]
[340191564,1728807042696,-420.0,0.00030552,2]
[340191565,1728807042705,-150.112233,0.000306,5]
[340191566,1728807042716,-11140.6924662,0.00030626,4]
[340191567,1728807042726,-151.0,0.00030636,7]
[340191568,1728807042736,-161.79243,0.00030636,7]
[340191569,1728807042745,-284.145272,0.00030636,7]
[340191570,1728807042755,-151.0,0.00030636,7]
[340191571,1728807042765,-2037.96925,0.00030636,7]
[340191572,1728807042774,-2037.96925,0.00030636,7]
[340191573,1728807042784,-390.162464,0.00030636,7]
[340191574,1728807042794,-151.0,0.00030636,7]
[340191575,1728807042803,-186.9983685,0.0003065,2]
[340191576,1728807042813,-151.0,0.00030683,7]
[340191577,1728807042822,-159.212243,0.00030683,3]
[340191578,1728807042832,-166.997533,0.00030683,7]
[340191579,1728807042841,-166.997533,0.00030683,7]
[340191580,1728807042850,-151.0,0.00030683,7]
[340191581,1728807042861,-350.865872,0.00030683,7]
[340191582,1728807042871,-350.865882,0.00030683,7]
[340191583,1728807042880,-832.968628,0.00030683,7]
[340191584,1728807042889,-832.968619,0.00030683,7]
[340191585,1728807042898,-195.531126,0.00030683,7]
[340191586,1728807042908,-195.531125,0.00030683,7]
[340191587,1728807042917,-151.0,0.00030683,7]
[340191588,1728807042927,-1096.48285948,0.00030693,7]
[340191589,1728807042937,-5260.92,0.000307,30]
[340191590,1728807042947,-151.0,0.000307,7]
[340191591,1728807042957,-151.0,0.000307,7]
[340191592,1728807042969,-159.715521,0.000307,7]
[340191593,1728807042979,-151.0,0.000307,7]
[340191594,1728807042989,-299.72682,0.000307,7]
[340191595,1728807042998,-299.72682,0.000307,7]
[340191596,1728807043008,-549.387377,0.000307,7]
[340191597,1728807043018,-549.387377,0.000307,7]
[340191598,1728807043027,-151.0,0.000307,7]
[340191599,1728807043036,-272.370652,0.000307,7]
[340191600,1728807043046,-200.0,0.0003072,23]
[340191601,1728807043056,-472.84086057,0.00030789,2]
[340191602,1728807043066,-274.431227,0.00030789,7]
[340191603,1728807043076,-274.431227,0.00030789,7]
[340191604,1728807043085,-169.065432,0.00030789,7]
[340191605,1728807043095,-169.065432,0.00030789,7]
[340191606,1728807043104,-151.0,0.00030789,7]
[340191607,1728807043114,-171.310379,0.00030789,7]
[340191608,1728807043124,-151.0,0.00030789,7]
[340191609,1728807043133,-171.310379,0.00030789,7]
[340191610,1728807043143,-517.10721456,0.00030842,5]
[340191611,1728807043154,-1000.0,0.00030842,5]
[340191612,1728807043163,-1000.0,0.00030842,5]
[340191613,1728807043173,-1000.0,0.00030842,5]
[340191614,1728807043183,-518.67647806,0.00030842,5]
[340191615,1728807043193,-150.112233,0.000309,5]
[340191616,1728807043202,-276.391413,0.00030942,2]
[340191617,1728807043212,-1000.0,0.00030942,5]
[340191618,1728807043221,-163.66229541,0.00030942,2]
[340191619,1728807043231,-177.22660455,0.00030973,5]
[340191620,1728807043241,-500.0,0.00030973,5]
[340191621,1728807043250,-500.0,0.00030973,5]
[340191622,1728807043260,-500.64427429,0.00030973,5]
[340191623,1728807043270,-500.0,0.00030973,5]
[340191624,1728807043280,-500.0,0.00030973,5]
[340191625,1728807043289,-500.0,0.00030973,5]
[340191626,1728807043299,-378.27493434,0.00030973,5]
[340191627,1728807043308,-541.23806229,0.00030973,5]
[340191628,1728807043317,-500.0,0.00030973,5]
[340191629,1728807043328,-11140.6924662,0.0003099,4]
[340191630,1728807043337,-1367.99,0.00031,30]
[340191631,1728807043347,-3199.99,0.00031,14]
[340191632,1728807043356,-151.0,0.00031,7]
[340191633,1728807043365,-151.0,0.00031,7]
[340191634,1728807043375,-151.0,0.00031,7]
[340191635,1728807043384,-151.0,0.00031,7]
[340191636,1728807043393,-235.023237,0.00031,7]
[340191637,1728807043403,-235.023237,0.00031,7]
[340191638,1728807043413,-214.488169,0.00031,7]
[340191639,1728807043422,-207.18641,0.00031,7]
[340191640,1728807043432,-214.488169,0.00031,7]
[340191641,1728807043441,-207.18641,0.00031,7]
[340191642,1728807043450,-150.112233,0.000311,9]
[340191643,1728807043461,-150.112233,0.000312,8]
[340191644,1728807043470,-158.0,0.000312,2]
[340191645,1728807043481,-11140.6924662,0.00031235,4]
[340191646,1728807043490,-171.310379,0.00031235,7]
[340191647,1728807043500,-151.0,0.00031235,7]
[340191648,1728807043509,-171.310379,0.00031235,7]
[340191649,1728807043519,-1000.0,0.00031242,5]
[340191650,1728807043529,-1082.42741266,0.00031242,5]
[340191651,1728807043539,-46596.94512636,0.00031245,2]
[340191652,1728807043549,-171.310379,0.00031245,7]
[340191653,1728807043558,-151.0,0.00031245,7]
[340191654,1728807043567,-171.310379,0.00031245,7]
[340191655,1728807043577,-150.0,0.00031273,5]
[340191656,1728807043587,-150.0,0.00031273,5]
[340191657,1728807043596,-150.112233,0.000313,9]
[340191658,1728807043606,-506.0,0.00031485,2]
[340191659,1728807043615,-500.0,0.00031485,2]
[340191660,1728807043624,-158.84453095,0.00031485,2]
[340191661,1728807043634,-150.0,0.00031485,2]
[340191662,1728807043646,-500.0,0.00031485,2]
[340191663,1728807043656,-500.0,0.00031485,2]
[340191664,1728807043666,-150.0,0.00031485,2]
[340191665,1728807043675,-20924.7152469,0.00031561,3]
[340191666,1728807043686,-400.0,0.000316,120]
[340191667,1728807043696,-1000.0,0.00031742,5]
[340191668,1728807043705,-153.23956764,0.000318,2]
[340191669,1728807043716,-150.112233,0.000318,8]
[340191670,1728807043726,-250.0,0.00031821,5]
[340191671,1728807043736,-250.0,0.00031821,5]
[340191672,1728807043745,-500.0,0.00032,5]
[340191673,1728807043755,-1565.41045918,0.00032,60]
[340191674,1728807043765,-250.0,0.00032,120]
[340191675,1728807043774,-506.0,0.00032033,2]
[340191676,1728807043784,-500.0,0.00032033,2]
[340191677,1728807043794,-204.84257656,0.00032033,2]
[340191678,1728807043804,-797.94671726,0.00032033,2]
[340191679,1728807043814,-500.0,0.00032033,2]
[340191680,1728807043824,-204.63921662,0.00032033,2]
[340191681,1728807043834,-500.0,0.00032073,5]
[340191682,1728807043844,-11140.6924662,0.0003209,4]
[340191683,1728807043854,-5260.92,0.000321,30]
[340191684,1728807043863,-150.11224,0.000321,9]
[340191685,1728807043873,-151.0,0.000321,7]
[340191686,1728807043883,-2037.96925,0.000321,7]
[340191687,1728807043892,-2037.96925,0.000321,7]
[340191688,1728807043901,-390.162464,0.000321,7]
[340191689,1728807043911,-151.0,0.000321,7]
[340191690,1728807043920,-171.310379,0.000321,7]
[340191691,1728807043929,-274.432926,0.000321,7]
[340191692,1728807043939,-136.42218544,0.000321,7]
[340191693,1728807043978,-34.88819956,0.000321,7]
[340191694,1728807043988,-151.0,0.00032164,7]
[340191695,1728807043998,-151.0,0.00032164,7]
[340191696,1728807044008,-169.065432,0.00032164,7]
[340191697,1728807044018,-169.065432,0.00032164,7]
[340191698,1728807044028,-184.0,0.00032165,2]
[340191699,1728807044103,-865.387,0.00032165,2]
[340191700,1728807044112,-1157.0,0.00032165,2]
[340191701,1728807044122,-527.48,0.00032171,120]
[340191702,1728807044131,-500.0,0.00032171,120]
[340191703,1728807044141,-552.55,0.00032171,120]
[340191704,1728807044150,-500.0,0.00032171,120]
[340191705,1728807044160,-500.0,0.00032171,120]
[340191706,1728807044169,-500.0,0.00032171,120]
[340191707,1728807044179,-500.0,0.00032171,120]
[340191708,1728807044188,-500.0,0.00032171,120]
[340191709,1728807044197,-500.0,0.00032171,120]
[340191710,1728807044208,-500.0,0.00032171,120]
[340191711,1728807044218,-403.23,0.00032171,120]
[340191712,1728807044227,-151.0,0.00032171,7]
[340191713,1728807044237,-162.936761,0.00032171,7]
[340191714,1728807044247,-151.0,0.00032171,7]
[340191715,1728807044257,-299.72682,0.00032171,7]
[340191716,1728807044267,-299.72682,0.00032171,7]
[340191717,1728807044276,-549.387377,0.00032171,7]
[340191718,1728807044295,-549.387377,0.00032171,7]
[340191719,1728807044306,-274.431227,0.00032171,7]
[340191720,1728807044316,-274.431227,0.00032171,7]
[340191721,1728807044326,-280.0,0.000322,10]
[340191722,1728807044337,-536.03984565,0.00032342,5]
[340191723,1728807044347,-573.40670331,0.00032342,5]
[340191724,1728807044357,-1000.0,0.00032342,5]
[340191725,1728807044368,-950.95952204,0.00032342,5]
[340191726,1728807044378,-357.6696602,0.00032342,5]
[340191727,1728807044388,-1000.0,0.00032342,5]
[340191728,1728807044397,-350.0,0.00032368,5]
[340191729,1728807044408,-150.112233,0.000324,5]
[340191730,1728807044418,-587.0,0.00032411,2]
[340191731,1728807044427,-150.112233,0.000325,9]
[340191732,1728807044437,-7383.632,0.00032542,2]
[340191733,1728807044447,-506.0,0.00032581,2]
[340191734,1728807044456,-500.0,0.00032581,2]
[340191735,1728807044467,-500.0,0.00032581,2]
[340191736,1728807044477,-150.112233,0.000326,10]
[340191737,1728807044487,-179.408732,0.00032666,7]
[340191738,1728807044496,-166.997533,0.00032666,7]
[340191739,1728807044506,-166.997533,0.00032666,7]
[340191740,1728807044515,-154.588057,0.00032666,7]
[340191741,1728807044525,-28488.78651871,0.0003267,2]
[340191742,1728807044655,-99.92340616,0.000298,2]
[340191772,1728807046227,-163.5237393,0.000298,2]
[340191774,1728807485781,-250.0,0.00026721,2]
[340191775,1728807485805,-250.0,0.00026794,2]
[340191776,1728807485930,-250.0,0.00026867,2]
[340191777,1728807485963,-250.0,0.00026941,2]
[340191778,1728807485988,-250.0,0.00027014,2]
[340191779,1728807486012,-250.0,0.00027087,2]
[340191780,1728807486034,-250.0,0.00027161,2]
[340191781,1728807486058,-250.0,0.00027234,2]
[340191782,1728807486081,-151.0,0.000273,2]
[340191783,1728807486103,-250.0,0.00027307,2]
[340191784,1728807486125,-300.0,0.00027322,2]
[340191785,1728807486147,-300.0,0.00027322,2]